lending/lending_fUSD_20251106
["ID","MTS","AMOUNT","RATE_DAILY","PERIOD"]
[393259244,1762397443130,-151.0,0.0001699,2]
[393259245,1762397443141,-476.442342,0.0001699,2]
[393259246,1762397443156,-476.442342,0.0001699,2]
[393259247,1762397443169,-476.442342,0.0001699,2]
[393259248,1762397443181,-476.442342,0.0001699,2]
[393259249,1762397443192,-164.946566,0.0001699,2]
[393259250,1762397443204,-158.551674,0.0001699,2]
[393259251,1762397443217,-151.0,0.0001699,2]
[393259252,1762397443240,-151.0,0.0001699,2]
[393259253,1762397443260,-151.0,0.0001699,2]
[393259254,1762397443272,-151.0,0.0001699,2]
[393259255,1762397443284,-151.0,0.0001699,2]
[393259256,1762397443295,-177.973368,0.0001699,2]
[393259257,1762397443305,-151.0,0.0001699,2]
[393259258,1762397443316,-151.0,0.0001699,2]
[393259259,1762397443326,-151.0,0.0001699,2]
[393259260,1762397443336,-1813.452705,0.0001699,2]
[393259261,1762397443346,-1813.452705,0.0001699,2]
[393259262,1762397443356,-152.117009,0.0001699,2]
[393259263,1762397443366,-151.0,0.0001699,2]
[393259264,1762397443375,-151.0,0.0001699,2]
[393259265,1762397443385,-1813.452705,0.0001699,2]
[393259266,1762397443395,-151.0,0.0001699,2]
[393259267,1762397443408,-151.0,0.0001699,2]
[393259268,1762397443418,-1813.452705,0.0001699,2]
[393259270,1762397443427,-234.530472,0.0001699,2]
[393259271,1762397443436,-181.021455,0.0001699,2]
[393259272,1762397443445,-234.530472,0.0001699,2]
[393259273,1762397443455,-234.530472,0.0001699,2]
[393259274,1762397443465,-151.0,0.0001699,2]
[393259275,1762397443475,-234.530472,0.0001699,2]
[393259276,1762397443485,-151.0,0.0001699,2]
[393259277,1762397443495,-692.200381,0.0001699,2]
[393259278,1762397443506,-225.356362,0.0001699,2]
[393259279,1762397443516,-250.291081,0.0001699,2]
[393259280,1762397443526,-692.200381,0.0001699,2]
[393259281,1762397443536,-209.209248,0.0001699,2]
[393259282,1762397443546,-692.200381,0.0001699,2]
[393259283,1762397443555,-151.0,0.0001699,2]
[393259284,1762397443566,-692.200381,0.0001699,2]
[393259285,1762397443575,-152.366405,0.0001699,2]
[393259286,1762397443585,-151.0,0.0001699,2]
[393259287,1762397443595,-170.295859,0.0001699,2]
[393259288,1762397443604,-151.0,0.0001699,2]
[393259289,1762397443613,-151.0,0.0001699,2]
[393259290,1762397443623,-250.0,0.00017,2]
[393259292,1762397443633,-2000.0,0.00017,2]
[393259294,1762397443642,-380.24195407,0.00017038,2]
[393259295,1762397443651,-1186.0,0.00017048,2]
[393259296,1762397443664,-1186.0,0.00017051,2]
[393259297,1762397443673,-500.0,0.00017055,2]
[393259298,1762397443683,-222.70644592,0.00017055,2]
[393259299,1762397443692,-178.04792307,0.00017055,2]
[393259300,1762397443701,-500.0,0.00017055,2]
[393259301,1762397443711,-500.0,0.00017055,2]
[393259302,1762397443720,-502.8276381,0.00017055,2]
[393259303,1762397443729,-506.43353395,0.00017055,2]
[393259304,1762397443738,-501.06862907,0.00017055,2]
[393259305,1762397443747,-500.0,0.00017055,2]
[393259306,1762397443760,-500.0,0.00017055,2]
[393259307,1762397443772,-503.00814931,0.00017055,2]
[393259308,1762397443786,-500.0,0.00017055,2]
[393259309,1762397443798,-151.0,0.00017059,2]
[393259310,1762397443810,-2464.0,0.00017061,2]
[393259311,1762397443820,-344.25765138,0.00017062,2]
[393259312,1762397443831,-14282.41959783,0.00017062,2]
[393259313,1762397443847,-8957.92825633,0.00017062,2]
[393259314,1762397443859,-195.936497,0.00017062,2]
[393259315,1762397443871,-151.0,0.00017062,2]
[393259316,1762397443884,-151.0,0.00017062,2]
[393259317,1762397443895,-156.220974,0.00017062,2]
[393259318,1762397443909,-151.0,0.00017062,2]
[393259319,1762397443922,-371.186349,0.00017062,2]
[393259320,1762397443935,-371.186349,0.00017062,2]
[393259321,1762397443947,-371.186349,0.00017062,2]
[393259322,1762397443958,-371.186349,0.00017062,2]
[393259323,1762397443969,-151.0,0.00017062,2]
[393259324,1762397443979,-151.0,0.00017062,2]
[393259325,1762397443990,-151.0,0.00017062,2]
[393259326,1762397444001,-151.000003,0.00017062,2]
[393259327,1762397444014,-151.0,0.00017062,2]
[393259328,1762397444025,-151.0,0.00017062,2]
[393259329,1762397444036,-151.0,0.00017062,2]
[393259330,1762397444047,-152.879812,0.00017062,2]
[393259331,1762397444059,-165.228689,0.00017062,2]
[393259332,1762397444070,-151.0,0.00017062,2]
[393259333,1762397444081,-270.284275,0.00017062,2]
[393259334,1762397444092,-151.0,0.00017062,2]
[393259335,1762397444104,-168.084633,0.00017062,2]
[393259336,1762397444116,-290.23366,0.00017062,2]
[393259337,1762397444127,-151.0,0.00017062,2]
[393259338,1762397444139,-151.0,0.00017062,2]
[393259339,1762397444151,-151.0,0.00017062,2]
[393259340,1762397444164,-264.317884,0.00017062,2]
[393259341,1762397444176,-151.0,0.00017062,2]
[393259342,1762397444187,-173.410449,0.00017062,2]
[393259343,1762397444199,-213.334886,0.00017062,2]
[393259344,1762397444209,-151.0,0.00017062,2]
[393259345,1762397444221,-151.0,0.00017062,2]
[393259346,1762397444232,-514.977228,0.00017062,2]
[393259347,1762397444243,-514.977228,0.00017062,2]
[393259348,1762397444256,-514.977228,0.00017062,2]
[393259349,1762397444268,-514.977228,0.00017062,2]
[393259350,1762397444279,-296.732271,0.00017062,2]
[393259351,1762397444290,-151.0,0.00017062,2]
[393259352,1762397444301,-151.0,0.00017062,2]
[393259353,1762397444312,-162.258228,0.00017062,2]
[393259354,1762397444322,-151.0,0.00017062,2]
[393259355,1762397444332,-161.064955,0.00017062,2]
[393259356,1762397444343,-153.416407,0.00017062,2]
[393259357,1762397444353,-151.0,0.00017062,2]
[393259358,1762397444365,-151.0,0.00017062,2]
[393259359,1762397444379,-151.0,0.00017062,2]
[393259360,1762397444391,-153.748117,0.00017062,2]
[393259361,1762397444401,-153.748117,0.00017062,2]
[393259362,1762397444412,-153.748117,0.00017062,2]
[393259363,1762397444422,-153.748117,0.00017062,2]
[393259364,1762397444432,-151.0,0.00017062,2]
[393259365,1762397444443,-223.570654,0.00017062,2]
[393259366,1762397444458,-151.0,0.00017062,2]
[393259367,1762397444472,-151.0,0.00017062,2]
[393259368,1762397444484,-151.0,0.00017062,2]
[393259369,1762397444495,-157.196588,0.00017062,2]
[393259370,1762397444507,-500.0,0.00017064,2]
[393259371,1762397444517,-150.0,0.00017064,2]
[393259372,1762397444528,-150.0,0.00017064,2]
[393259373,1762397444540,-203.71212992,0.00017064,2]
[393259374,1762397444551,-500.0,0.00017064,2]
[393259375,1762397444563,-500.0,0.00017064,2]
[393259376,1762397444575,-150.0,0.00017064,2]
[393259377,1762397444587,-780.0,0.00017064,2]
[393259378,1762397444598,-150.0,0.00017064,2]
[393259379,1762397444609,-500.0,0.00017064,2]
[393259380,1762397444620,-150.0,0.00017064,2]
[393259381,1762397444632,-150.0,0.00017064,2]
[393259382,1762397444644,-150.0,0.00017064,2]
[393259383,1762397444657,-150.0,0.00017064,2]
[393259384,1762397444668,-331.61,0.0001707,2]
[393259385,1762397444679,-174.20785357,0.0001707,2]
[393259386,1762397444690,-488.21140731,0.0001707,2]
[393259387,1762397444702,-500.0,0.0001707,2]
[393259388,1762397444713,-500.0,0.0001707,2]
[393259389,1762397444724,-500.0,0.0001707,2]
[393259390,1762397444735,-500.0,0.00017098,2]
[393259391,1762397444745,-300.0,0.00017098,2]
[393259392,1762397444756,-180.89258404,0.000171,2]
[393259393,1762397444767,-1186.0,0.00017105,2]
[393259394,1762397444778,-151.0,0.00017105,2]
[393259395,1762397444789,-151.0,0.00017105,2]
[393259396,1762397444803,-151.0,0.00017105,2]
[393259397,1762397444814,-151.0,0.00017113,2]
[393259398,1762397444825,-154.034026,0.00017113,2]
[393259399,1762397444841,-151.0,0.00017113,2]
[393259400,1762397444853,-151.0,0.00017113,2]
[393259401,1762397444865,-151.0,0.00017113,2]
[393259402,1762397444877,-1186.0,0.00017136,2]
[393259403,1762397444890,-378.09179407,0.0001715,2]
[393259404,1762397444902,-195.0,0.00017158,2]
[393259405,1762397444915,-2554.74079995,0.00017158,2]
[393259406,1762397444927,-283.7415811,0.00017158,2]
[393259407,1762397444939,-193.75099932,0.00017158,2]
[393259408,1762397444950,-300.0,0.00017158,2]
[393259409,1762397444961,-195.0,0.00017158,2]
[393259410,1762397444972,-253.95807478,0.00017158,2]
[393259411,1762397444982,-300.0,0.00017158,2]
[393259412,1762397444994,-300.0,0.00017158,2]
[393259413,1762397445005,-300.0,0.00017158,2]
[393259414,1762397445016,-300.0,0.00017158,2]
[393259415,1762397445027,-351.1491444,0.00017158,2]
[393259416,1762397445038,-2500.0,0.00017158,2]
[393259417,1762397445050,-150.0,0.00017158,2]
[393259418,1762397445061,-300.0,0.00017158,2]
[393259419,1762397445072,-195.0,0.00017158,2]
[393259420,1762397445083,-252.74,0.00017158,2]
[393259421,1762397445094,-294.6298134,0.00017158,2]
[393259422,1762397445105,-250.0,0.00017158,2]
[393259423,1762397445116,-151.0,0.00017198,2]
[393259424,1762397445126,-151.78844,0.00017198,2]
[393259425,1762397445137,-156.131784,0.00017198,2]
[393259426,1762397445147,-157.562841,0.00017198,2]
[393259427,1762397445159,-151.0,0.00017198,2]
[393259428,1762397445170,-151.000022,0.00017198,2]
[393259429,1762397445181,-151.0,0.000172,2]
[393259430,1762397445191,-164.395105,0.000172,2]
[393259431,1762397445202,-206.347297,0.000172,2]
[393259432,1762397445216,-168.552648,0.000172,2]
[393259433,1762397445226,-153.664023,0.000172,2]
[393259434,1762397445237,-159.507299,0.000172,2]
[393259435,1762397445247,-160.987438,0.000172,2]
[393259436,1762397445258,-151.0,0.000172,2]
[393259437,1762397445269,-151.0,0.000172,2]
[393259438,1762397445280,-153.748117,0.000172,2]
[393259439,1762397445292,-153.748117,0.000172,2]
[393259440,1762397445303,-153.748117,0.000172,2]
[393259441,1762397445315,-153.748117,0.000172,2]
[393259442,1762397445327,-164.468218,0.000172,2]
[393259443,1762397445338,-151.0,0.000172,2]
[393259444,1762397445349,-151.0,0.000172,2]
[393259445,1762397445360,-151.0,0.000172,2]
[393259446,1762397445372,-7200.0,0.000172,6]
[393259447,1762397445383,-164.45499352,0.00017201,2]
[393259448,1762397445395,-200.0,0.00017201,2]
[393259449,1762397445406,-150.0,0.00017201,2]
[393259450,1762397445418,-150.0,0.00017201,2]
[393259451,1762397445429,-500.0,0.00017201,2]
[393259452,1762397445441,-150.0,0.00017201,2]
[393259453,1762397445452,-780.0,0.00017201,2]
[393259454,1762397445463,-500.0,0.00017201,2]
[393259455,1762397445475,-150.54651287,0.00017201,2]
[393259456,1762397445486,-200.0,0.00017201,2]
[393259457,1762397445497,-200.0,0.00017201,2]
[393259458,1762397445508,-205.03214734,0.00017201,2]
[393259459,1762397445519,-151.0,0.00017204,2]
[393259460,1762397445530,-151.0,0.00017204,2]
[393259461,1762397445540,-171.720491,0.00017204,2]
[393259462,1762397445551,-151.0,0.00017204,2]
[393259463,1762397445562,-189.932706,0.00017204,2]
[393259464,1762397445573,-151.0,0.00017204,2]
[393259465,1762397445583,-151.0,0.00017204,2]
[393259466,1762397445598,-151.0,0.00017204,2]
[393259467,1762397445610,-164.24458,0.00017204,2]
[393259468,1762397445621,-514.977228,0.00017204,2]
[393259469,1762397445631,-514.977228,0.00017204,2]
[393259470,1762397445642,-514.977228,0.00017204,2]
[393259471,1762397445653,-514.977228,0.00017204,2]
[393259472,1762397445665,-151.0,0.00017204,2]
[393259473,1762397445676,-151.0,0.00017204,2]
[393259474,1762397445688,-300.623423,0.00017204,2]
[393259475,1762397445699,-2744.9989,0.00017204,2]
[393259476,1762397445709,-331.61,0.00017207,2]
[393259477,1762397445720,-486.45713631,0.0001722,2]
[393259478,1762397445731,-151.0,0.00017229,2]
[393259479,1762397445742,-151.0,0.00017229,2]
[393259480,1762397445752,-151.0,0.00017229,2]
[393259481,1762397445763,-371.186349,0.00017229,2]
[393259482,1762397445773,-371.186349,0.00017229,2]
[393259483,1762397445784,-371.186349,0.00017229,2]
[393259485,1762397445795,-371.186349,0.00017229,2]
[393259486,1762397445805,-151.016871,0.00017229,2]
[393259487,1762397445816,-166.441443,0.00017229,2]
[393259488,1762397445827,-171.166145,0.00017229,2]
[393259490,1762397445842,-215.419892,0.00017229,2]
[393259491,1762397445853,-151.0,0.00017229,2]
[393259492,1762397445863,-253.129001,0.00017229,2]
[393259493,1762397445873,-253.129001,0.00017229,2]
[393259494,1762397445884,-253.129001,0.00017229,2]
[393259495,1762397445894,-151.0,0.00017229,2]
[393259496,1762397445907,-253.129001,0.00017229,2]
[393259497,1762397445918,-151.0,0.00017229,2]
[393259498,1762397445929,-151.0,0.00017229,2]
[393259499,1762397445940,-151.0,0.00017229,2]
[393259500,1762397445952,-151.0,0.00017229,2]
[393259501,1762397445963,-151.0,0.00017229,2]
[393259502,1762397445975,-161.593414,0.00017229,2]
[393259503,1762397445984,-151.0,0.00017229,2]
[393259504,1762397445993,-151.0,0.00017229,2]
[393259505,1762397446003,-151.0,0.00017229,2]
[393259506,1762397446013,-152.008862,0.00017229,2]
[393259507,1762397446023,-151.0,0.00017229,2]
[393259508,1762397446038,-301.419213,0.00017229,2]
[393259509,1762397446058,-151.0,0.00017229,2]
[393259510,1762397446075,-476.442342,0.00017229,2]
[393259511,1762397446087,-476.442342,0.00017229,2]
[393259512,1762397446097,-476.442342,0.00017229,2]
[393259513,1762397446108,-476.442342,0.00017229,2]
[393259514,1762397446120,-151.0,0.00017229,2]
[393259515,1762397446130,-151.0,0.00017229,2]
[393259516,1762397446142,-151.0,0.00017229,2]
[393259517,1762397446153,-151.0,0.00017229,2]
[393259518,1762397446163,-156.174928,0.00017229,2]
[393259519,1762397446172,-151.0,0.00017229,2]
[393259520,1762397446182,-157.064779,0.00017229,2]
[393259521,1762397446191,-151.0,0.00017229,2]
[393259522,1762397446480,-151.0,0.00017229,2]
[393259523,1762397446497,-151.0,0.00017229,2]
[393259525,1762397446510,-151.0,0.00017229,2]
[393259526,1762397446520,-192.225871,0.00017229,2]
[393259527,1762397446530,-151.0,0.00017229,2]
[393259528,1762397446539,-151.0,0.00017229,2]
[393259529,1762397446548,-283.201929,0.00017229,2]
[393259530,1762397446558,-151.0,0.00017229,2]
[393259531,1762397446567,-283.201929,0.00017229,2]
[393259532,1762397446576,-151.0,0.00017229,2]
[393259533,1762397446585,-283.201929,0.00017229,2]
[393259534,1762397446593,-151.0,0.00017229,2]
[393259535,1762397446606,-151.0,0.00017229,2]
[393259536,1762397446615,-283.201929,0.00017229,2]
[393259537,1762397446624,-151.0,0.00017229,2]
[393259538,1762397446633,-152.895251,0.00017229,2]
[393259539,1762397446642,-151.0,0.00017229,2]
[393259540,1762397446651,-151.0,0.00017229,2]
[393259541,1762397446663,-151.0,0.00017229,2]
[393259542,1762397446672,-151.0,0.00017229,2]
[393259543,1762397446681,-151.0,0.00017229,2]
[393259544,1762397446690,-151.0,0.00017229,2]
[393259545,1762397446699,-151.0,0.00017229,2]
[393259546,1762397446709,-151.0,0.00017229,2]
[393259547,1762397446719,-253.670252,0.00017229,2]
[393259548,1762397446728,-151.0,0.00017229,2]
[393259549,1762397446738,-310.677948,0.00017229,2]
[393259550,1762397446747,-151.0,0.00017229,2]
[393259551,1762397446756,-152.221895,0.00017229,2]
[393259552,1762397446766,-310.677948,0.00017229,2]
[393259553,1762397446775,-151.0,0.00017229,2]
[393259554,1762397446784,-310.677948,0.00017229,2]
[393259555,1762397446794,-172.030553,0.00017229,2]
[393259556,1762397446803,-310.677948,0.00017229,2]
[393259557,1762397446812,-166.950736,0.00017229,2]
[393259558,1762397446821,-151.0,0.00017229,2]
[393259559,1762397446831,-166.950736,0.00017229,2]
[393259560,1762397446841,-151.0,0.00017229,2]
[393259563,1762397446851,-1344.289614,0.00017229,2]
[393259565,1762397446861,-155.265554,0.00017229,2]
[393259567,1762397446871,-154.174134,0.00017229,2]
[393259568,1762397446881,-151.0,0.00017229,2]
[393259569,1762397446890,-166.950736,0.00017229,2]
[393259570,1762397446899,-151.0,0.00017229,2]
[393259571,1762397446910,-1344.289614,0.00017229,2]
[393259572,1762397446922,-389.359871,0.00017229,2]
[393259573,1762397446931,-166.950736,0.00017229,2]
[393259574,1762397446940,-1344.289614,0.00017229,2]
[393259575,1762397446949,-151.0,0.00017229,2]
[393259576,1762397446958,-151.0,0.00017229,2]
[393259577,1762397446967,-389.359871,0.00017229,2]
[393259578,1762397446977,-151.0,0.00017229,2]
[393259579,1762397446986,-151.0,0.00017229,2]
[393259580,1762397446995,-1344.289614,0.00017229,2]
[393259581,1762397447004,-151.0,0.00017229,2]
[393259582,1762397447014,-151.0,0.00017229,2]
[393259583,1762397447023,-389.359871,0.00017229,2]
[393259584,1762397447032,-151.0,0.00017229,2]
[393259585,1762397447041,-389.359871,0.00017229,2]
[393259586,1762397447051,-151.0,0.00017229,2]
[393259587,1762397447060,-151.0,0.00017229,2]
[393259588,1762397447070,-161.356972,0.00017229,2]
[393259589,1762397447079,-151.0,0.00017229,2]
[393259590,1762397447089,-660.228099,0.00017229,2]
[393259591,1762397447098,-151.0,0.00017229,2]
[393259592,1762397447108,-151.0,0.00017229,2]
[393259593,1762397447117,-660.228099,0.00017229,2]
[393259594,1762397447127,-344.25765138,0.00017229,2]
[393259595,1762397447136,-14282.41959783,0.00017229,2]
[393259596,1762397447145,-8957.92825633,0.00017229,2]
[393259597,1762397447155,-500.0,0.00017233,2]
[393259598,1762397447164,-500.0,0.00017235,2]
[393259599,1762397447174,-300.0,0.00017235,2]
[393259600,1762397447184,-151.0,0.00017236,2]
[393259601,1762397447192,-151.0,0.00017236,2]
[393259602,1762397447202,-151.0,0.00017236,2]
[393259603,1762397447212,-151.0,0.00017236,2]
[393259604,1762397447221,-151.0,0.00017236,2]
[393259605,1762397447230,-151.0,0.00017236,2]
[393259606,1762397447240,-189.633908,0.00017236,2]
[393259607,1762397447249,-1813.452705,0.00017236,2]
[393259608,1762397447261,-1813.452705,0.00017236,2]
[393259609,1762397447270,-151.0,0.00017236,2]
[393259610,1762397447279,-151.0,0.00017236,2]
[393259611,1762397447288,-1813.452705,0.00017236,2]
[393259612,1762397447298,-152.599481,0.00017236,2]
[393259613,1762397447307,-151.0,0.00017236,2]
[393259614,1762397447316,-1813.452705,0.00017236,2]
[393259615,1762397447325,-234.530472,0.00017236,2]
[393259616,1762397447334,-234.530472,0.00017236,2]
[393259617,1762397447343,-234.530472,0.00017236,2]
[393259618,1762397447352,-151.0,0.00017236,2]
[393259619,1762397447361,-234.530472,0.00017236,2]
[393259620,1762397447371,-151.0,0.00017236,2]
[393259621,1762397447380,-692.200381,0.00017236,2]
[393259622,1762397447389,-692.200381,0.00017236,2]
[393259623,1762397447399,-692.200381,0.00017236,2]
[393259624,1762397447408,-239.397665,0.00017236,2]
[393259625,1762397447418,-692.200381,0.00017236,2]
[393259626,1762397447427,-151.0,0.00017236,2]
[393259627,1762397447436,-151.0,0.00017236,2]
[393259628,1762397447445,-151.0,0.00017236,2]
[393259629,1762397447455,-385.00335952,0.00017238,2]
[393259630,1762397447464,-241.69,0.00017246,2]
[393259631,1762397447473,-380.24195407,0.00017253,2]
[393259632,1762397447483,-353.76,0.0001726,2]
[393259633,1762397447493,-176.88,0.0001726,2]
[393259634,1762397447502,-794.96,0.00017264,2]
[393259635,1762397447512,-5888.0,0.00017297,2]
[393259636,1762397447522,-163.906578,0.00017297,2]
[393259637,1762397447531,-151.0,0.00017297,2]
[393259638,1762397447540,-151.0,0.00017297,2]
[393259639,1762397447550,-151.0,0.00017297,2]
[393259640,1762397447559,-228.3856211,0.00017298,2]
[393259641,1762397447568,-151.0,0.00017298,2]
[393259642,1762397447579,-152.138568,0.00017298,2]
[393259643,1762397447588,-151.0,0.00017298,2]
[393259644,1762397447597,-151.0,0.00017298,2]
[393259645,1762397447606,-153.748117,0.00017298,2]
[393259646,1762397447615,-153.748117,0.00017298,2]
[393259647,1762397447625,-153.748117,0.00017298,2]
[393259648,1762397447635,-153.748116,0.00017298,2]
[393259650,1762397447643,-151.0,0.00017298,2]
[393259651,1762397447653,-151.0,0.00017298,2]
[393259652,1762397447663,-192.533483,0.00017298,2]
[393259653,1762397447673,-151.0,0.00017298,2]
[393259654,1762397447682,-151.0,0.00017298,2]
[393259655,1762397447691,-163.915331,0.00017298,2]
[393259656,1762397447700,-151.0,0.00017298,2]
[393259657,1762397447709,-151.0,0.00017298,2]
[393259658,1762397447717,-152.776652,0.00017298,2]
[393259659,1762397447726,-151.0,0.00017298,2]
[393259660,1762397447735,-295.865334,0.00017298,2]
[393259661,1762397447744,-151.0,0.00017298,2]
[393259662,1762397447752,-151.0,0.00017298,2]
[393259663,1762397447762,-151.0,0.00017298,2]
[393259664,1762397447771,-151.0,0.00017298,2]
[393259665,1762397447781,-151.0,0.00017298,2]
[393259666,1762397447792,-151.000007,0.00017298,2]
[393259667,1762397447803,-242.236881,0.00017298,2]
[393259668,1762397447812,-151.0,0.00017298,2]
[393259669,1762397447821,-191.135555,0.00017298,2]
[393259670,1762397447832,-191.135555,0.00017298,2]
[393259671,1762397447846,-151.0,0.00017298,2]
[393259672,1762397447856,-191.135555,0.00017298,2]
[393259673,1762397447869,-225.559042,0.00017298,2]
[393259674,1762397447888,-191.135555,0.00017298,2]
[393259675,1762397447897,-165.526356,0.00017298,2]
[393259676,1762397447908,-151.0,0.00017298,2]
[393259677,1762397447918,-164.44881,0.00017298,2]
[393259678,1762397447927,-151.0,0.000173,2]
[393259679,1762397447936,-151.0,0.000173,2]
[393259680,1762397447945,-151.0,0.000173,2]
[393259681,1762397447954,-154.816606,0.000173,2]
[393259682,1762397447963,-514.977228,0.000173,2]
[393259683,1762397447972,-514.977228,0.000173,2]
[393259684,1762397447981,-514.977228,0.000173,2]
[393259685,1762397447990,-514.977221,0.000173,2]
[393259686,1762397447999,-172.447409,0.000173,2]
[393259687,1762397448008,-151.0,0.000173,2]
[393259688,1762397448018,-9700.0,0.000173,6]
[393259689,1762397448028,-500.0,0.00017303,2]
[393259690,1762397448037,-500.0,0.00017303,2]
[393259691,1762397448046,-500.0,0.00017303,2]
[393259692,1762397448055,-274.939748,0.00017304,2]
[393259693,1762397448063,-151.0,0.00017304,2]
[393259694,1762397448072,-151.0,0.00017304,2]
[393259695,1762397448081,-168.204733,0.00017336,2]
[393259696,1762397448090,-150.0,0.00017338,2]
[393259697,1762397448099,-500.0,0.00017338,2]
[393259698,1762397448108,-150.0,0.00017338,2]
[393259699,1762397448118,-780.0,0.00017338,2]
[393259700,1762397448127,-500.0,0.00017338,2]
[393259701,1762397448136,-331.61,0.00017344,2]
[393259702,1762397448145,-385.0033595,0.00017348,2]
[393259703,1762397448155,-166.66,0.00017359,2]
[393259704,1762397448165,-1680.0,0.00017369,2]
[393259705,1762397448174,-500.0,0.00017372,2]
[393259706,1762397448183,-302.07896348,0.00017372,2]
[393259707,1762397448192,-151.0,0.00017378,2]
[393259708,1762397448201,-371.186349,0.00017378,2]
[393259709,1762397448211,-163.279486,0.00017378,2]
[393259710,1762397448219,-371.186349,0.00017378,2]
[393259711,1762397448229,-371.186349,0.00017378,2]
[393259712,1762397448238,-371.186349,0.00017378,2]
[393259713,1762397448247,-151.0,0.00017378,2]
[393259714,1762397448255,-1967.09914447,0.00017378,2]
[393259715,1762397448264,-324.64,0.00017394,2]
[393259716,1762397448273,-344.25765138,0.00017397,2]
[393259717,1762397448282,-14282.41959783,0.00017397,2]
[393259718,1762397448291,-8957.92825633,0.00017397,2]
[393259719,1762397448300,-500.0,0.00017399,2]
[393259720,1762397448310,-185.154177,0.000174,2]
[393259721,1762397448319,-151.0,0.000174,2]
[393259722,1762397448328,-12100.0,0.000174,6]
[393259723,1762397448337,-280.11465168,0.00017419,2]
[393259724,1762397448347,-420.0,0.00017431,2]
[393259725,1762397448356,-385.0033595,0.00017459,2]
[393259726,1762397448365,-380.24195407,0.00017469,2]
[393259727,1762397448374,-250.0,0.00017475,2]
[393259728,1762397448383,-500.0,0.00017475,2]
[393259730,1762397448393,-250.0,0.00017475,2]
[393259731,1762397448402,-780.0,0.00017475,2]
[393259732,1762397448412,-500.0,0.00017475,2]
[393259733,1762397448420,-331.61,0.00017481,2]
[393259734,1762397448430,-302.16808045,0.00017487,2]
[393259735,1762397448441,-151.0,0.000175,2]
[393259736,1762397448450,-371.186349,0.000175,2]
[393259737,1762397448460,-371.186349,0.000175,2]
[393259738,1762397448469,-371.186349,0.000175,2]
[393259739,1762397448482,-371.186346,0.000175,2]
[393259740,1762397448499,-151.0,0.000175,2]
[393259741,1762397448509,-2400.0,0.000175,6]
[393259742,1762397448519,-500.0,0.00017509,2]
[393259743,1762397448528,-277.26642779,0.00017521,2]
[393259744,1762397448538,-1000.0,0.00017521,2]
[393259745,1762397448548,-325.03790729,0.00017521,2]
[393259746,1762397448560,-1000.0,0.00017521,2]
[393259747,1762397448570,-339.76168497,0.00017521,2]
[393259748,1762397448580,-500.0,0.00017529,2]
[393259749,1762397448590,-500.0,0.00017529,2]
[393259750,1762397448600,-500.0,0.00017529,2]
[393259751,1762397448610,-500.0,0.00017529,2]
[393259752,1762397448620,-151.0,0.00017535,2]
[393259753,1762397448630,-151.0,0.00017535,2]
[393259754,1762397448640,-151.0,0.00017535,2]
[393259755,1762397448650,-151.0,0.00017535,2]